Cogmind - Beta 14 @@@ ROGUE MODE // 2024.09.18 @ 22:07:45 Player: hanzu Result: Destroyed by S-27 Virus with Autogun Performance ------------- Evolutions (4) 2000 Regions Visited (6) 1200 Robots Destroyed (80) 400 Value Destroyed (2847) 2847 Prototype IDs (26) 520 Alien Tech Used (0) 0 Bonus (601) 601 TOTAL SCORE: 7568 Bonus ------- High Alert Combat Kills 187 Follower Combat Kills 114 Registered with UFD 300 Cogmind --------- Core Integrity 0/850 Matter 220/300 Energy 100/100 System Corruption 4% Temperature Cool (0) Movement Core (100) Ox1 Location -6/Lower Caves Parts ------- > --- POWER (3) -------- (None) > --- PROPULSION (3) --- (None) > --- UTILITY (6) ------ Hacking Suite > --- WEAPON (3) ------- Improved Heavy Machine Gun > --- INVENTORY (5) ---- Flightbrick Improved Heat Sink Peak State ------------ > --- POWER ------------ Light Angular Momentum Engine Light Angular Momentum Engine > --- PROPULSION ------- Carbon-fiber Leg Carbon-fiber Leg Carbon-fiber Leg > --- UTILITY ---------- Improved Cryofiber Web High-capacity Storage Unit 0b10 Decoder Chip [Scout] Targeting Computer Improved Heavy Armor Plating > --- WEAPON ----------- Heavy Assault Rifle Junk Cannon > --- INVENTORY -------- Cesium-ion Thruster Biomechanical Wings Flightbrick Scrap Suit Improved Heat Sink High-capacity Matter Pod Force Field EM Pulse Cannon Proton Cannon Improved Proton Missile Launcher Rocket Launcher Mini Grenade Launcher Subdweller Shrapnel Launcher Multitool [Rating: 63] Favorites ----------- Power Light Angular Momentum Engine Engine Light Angular Momentum Engine Propulsion Light Treads Treads Light Treads Leg Carbon-fiber Leg Wheel Armored Huge Wheel Flight Unit Cesium-ion Thruster Utility High-capacity Storage Unit Device Improved Cryofiber Web Storage High-capacity Storage Unit Processor 0b10 Decoder Chip [Scout] Hackware Hacking Suite Protection Medium Reactive Plating Weapon Subdweller Beam Cannon Energy Gun EM Pulse Gun Energy Cannon Subdweller Beam Cannon Ballistic Gun Barrage Gun Ballistic Cannon Light Cannon Launcher Mini Grenade Launcher Special Weapon Junk Cannon Build | -11 -10 -10 -9 -9 -6 -6 ------- Run | Yrd Mat Sub Rec Scr Fac Low Slots Evolved 8 | . . . . . 8 . Power 2 | . . . . . 2 . Propulsion 1 | . . . . . 1 . Utility 4 | . . . . . 4 . Weapon 1 | . . . . . 1 . Parts Attached 77 | 6 7 19 . 7 38 . Power 7 | 1 1 1 . 1 3 . Engine 7 | 1 1 1 . 1 3 . Core . | . . . . . . . Reactor . | . . . . . . . Propulsion 18 | 2 1 4 . 2 9 . Treads 11 | 2 1 4 . 2 2 . Leg 4 | . . . . . 4 . Wheel 1 | . . . . . 1 . Hover . | . . . . . . . Flight 2 | . . . . . 2 . Utility 22 | 1 3 5 . 2 11 . Device 4 | . . 1 . . 3 . Storage 4 | 1 1 1 . 1 . . Processor 2 | . . . . . 2 . Hackware 1 | . . . . . 1 . Protection 11 | . 2 3 . 1 5 . Artifact . | . . . . . . . Weapon 30 | 2 2 9 . 2 15 . Energy Gun 1 | 1 . . . . . . Energy Cannon 4 | . . 1 . . 3 . Ballistic Gun 9 | 1 . 5 . . 3 . Ballistic Cannon 7 | . 2 1 . 1 3 . Launcher 5 | . . 2 . . 3 . Special Weapon 4 | . . . . 1 3 . Impact Weapon . | . . . . . . . Slashing Weapon . | . . . . . . . Piercing Weapon . | . . . . . . . Special Melee Weapon . | . . . . . . . Unidentified Prototypes 3 | . . . . 1 2 . Parts Lost 25 | . . 4 . . 21 . Power 3 | . . . . . 3 . Propulsion 9 | . . 2 . . 7 . Utility 5 | . . 1 . . 4 . Weapon 8 | . . 1 . . 7 . Highest Loss Streak 8 | . . 3 . . 8 . To Critical Strikes 1 | . . . . . 1 . Average Slot Usage (%) 85 | . 99 86 85 97 62 . Engine 12 | . 14 14 14 14 8 . Treads 22 | . 28 28 28 28 7 . Device 1 | . . 1 . . 2 . Storage 8 | . 14 3 14 14 5 . Processor 3 | . . . . . 11 . Protection 11 | . 13 10 . 13 11 . Energy Cannon 7 | . . 12 14 12 . . Ballistic Gun 6 | . 4 11 14 6 2 . Ballistic Cannon 5 | . 19 4 . 5 1 . Special Weapon 1 | . . . . 1 3 . Peak Build Rating 63 | 6 8 16 16 36 63 12 Average Rating 24 | 4 7 12 16 27 46 12 On Entrance 13 | . 6 8 16 16 36 12 Naked Turns 4 | . . . . . 4 . Heaviest Build 110 | 12 32 39 36 84 110 . Greatest Support 51 | 40 40 40 40 51 51 . Greatest Overweight (x) 6 | 2 . 1 . 2 6 . Average Overweight (x) . | . . . . . 1 . Largest Inventory Capacity 20 | 8 15 15 15 20 20 5 Average Capacity 14 | 6 12 7 15 19 18 5 Most Carried 20 | 2 12 15 15 20 20 5 Average Carried 12 | 1 8 6 15 19 14 5 Final Capacity 20 | 8 15 15 15 20 5 5 Final Carried 20 | 2 12 15 15 20 5 5 Class Distribution -------------------- 82% | Mutant 9% | Derelict-Mutant 3% | Gunner 3% | Tank Dominant Class ---------------- Mutant | -10/Materials Mutant | -10/Subcaves Mutant | -9/Recycling Mutant | -9/Scraptown Derelict-Mutant | -6/Factory Derelict-Mutant | -6/Lower Caves Resources | -11 -10 -10 -9 -9 -6 -6 ----------- Run | Yrd Mat Sub Rec Scr Fac Low Matter Collected 2529 | 138 445 590 . 260 1096 . Remotely . | . . . . . . . Salvage Created 3129 | . 558 451 143 . 1955 22 Parts 135 | . 42 37 7 . 47 2 Haulers Intercepted 2 | . 2 . . . . . Recyclers Shooed 1 | . . . . . 1 . Parts Field Recycled . | . . . . . . . Retrieved Matter . | . . . . . . . Parts Self-Destructed 18 | . . 18 . . . . Prevented . | . . . . . . . Kills | -11 -10 -10 -9 -9 -6 -6 ------- Run | Yrd Mat Sub Rec Scr Fac Low Combat Hostiles Destroyed 67 | . 14 18 . . 34 1 Guns 13 | . 6 3 . . 3 1 Cannons 35 | . 7 13 . . 15 . AOE 8 | . 1 2 . . 5 . Classes Destroyed 16 | . 6 2 . . 8 . Builder 1 | . . . . . 1 . Tunneler 1 | . . . . . 1 . Hauler 2 | . 2 . . . . . Recycler 4 | . 1 . . . 3 . Mechanic 1 | . 1 . . . . . Operator 1 | . . . . . 1 . Turret 2 | . . 2 . . . . Watcher 3 | . 2 . . . 1 . Swarmer 13 | . 6 6 . . . 1 Grunt 31 | . 8 . . . 23 . Brawler 1 | . . . . . 1 . Duelist 1 | . . . . . 1 . Sentry 2 | . . . . . 2 . Hunter 4 | . . . . . 4 . Programmer 3 | . . . . . 3 . Subdweller 12 | . . 12 . . . . Best Kill Streak 8 | . 3 8 . . 4 1 Combat Bots Only 4 | . 3 4 . . 4 1 Max Kills in Single Turn 2 | . 2 2 . . 2 1 Gunslinging . | . . . . . . . Exploded 2 | . 1 2 . . 2 . Melee . | . . . . . . . Uniques/NPCs Destroyed . | . . . . . . . Combat | -11 -10 -10 -9 -9 -6 -6 -------- Run | Yrd Mat Sub Rec Scr Fac Low Hostile Shots Fired 538 | . 46 77 . . 414 1 Missed 166 | . 15 25 . . 126 . Damage Taken 6040 | . 358 979 . . 4691 12 Core 1023 | . 18 148 . . 845 12 Absorbed by Shields . | . . . . . . . Redirected to Shielding 79 | . . . . . 79 . Ignored by Resistances 48 | . . . . . 48 . Regen/Repaired (Parts) 91 | . 39 . . . 52 . Core Remaining (%) 66 | 100 . . . 33 . . Volleys Fired 280 | . 46 78 7 . 148 1 Largest 3 | . 2 2 1 . 3 1 Hottest 162 | . 70 115 80 . 162 15 Shots Fired 437 | . 92 130 7 . 207 1 Gun 123 | . 46 21 . . 55 1 Cannon 248 | . 46 106 7 . 89 . Launcher 20 | . . 3 . . 17 . Special 46 | . . . . . 46 . Kinetic 291 | . 69 93 . . 128 1 Thermal 44 | . . 37 7 . . . Explosive 17 | . . . . . 17 . Electromagnetic 39 | . 23 . . . 16 . Impact 46 | . . . . . 46 . Robot Hit Streak 14 | . 5 14 3 . 13 11 Robot Miss Streak 5 | . 5 2 . . 4 . Penetration Max 1 | . . . . . 1 . Secondary Targets . | . . . . . . . Shots Hit Robots 279 | . 50 85 2 . 141 1 Core Hits 111 | . 24 31 2 . 53 1 Critical Kills 5 | . 1 . . . 4 . Critical Parts Destroyed 10 | . . . . . 10 . Critical Strikes 19 | . 1 . . . 18 . Destroy 12 | . 1 . . . 11 . Blast 4 | . . . . . 4 . Smash 3 | . . . . . 3 . Melee Attacks . | . . . . . . . Impact . | . . . . . . . Slashing . | . . . . . . . Piercing . | . . . . . . . Sneak Attacks . | . . . . . . . Combat Hostiles . | . . . . . . . Follow-up Attacks . | . . . . . . . Damage Inflicted 8262 | . 948 1626 55 . 5608 25 Guns 1206 | . 387 215 . . 579 25 Cannons 3399 | . 476 1193 55 . 1675 . Explosions 1138 | . 85 218 . . 835 . Melee . | . . . . . . . Ramming 10 | . . . . . 10 . Kinetic 3798 | . 663 1164 . . 1946 25 Thermal 602 | . 85 462 55 . . . Explosive 835 | . . . . . 835 . Electromagnetic 508 | . 200 . . . 308 . Impact 2509 | . . . . . 2509 . Slashing . | . . . . . . . Piercing . | . . . . . . . Highest Corruption 4 | . . . . . 4 4 Average Corruption 3 | . . . . . 3 4 Corruption Purged . | . . . . . . . Corruption Blocked . | . . . . . . . Effects 24 | . . . . . 24 . Message Errors 3 | . . . . . 3 . Matter Fused 5 | . . . . . 5 . Heat Flow Errors 6 | . . . . . 6 . Energy Discharges 2 | . . . . . 2 . Data Loss (minor) 5 | . . . . . 5 . Data Loss (major) 1 | . . . . . 1 . Misfires 2 | . . . . . 2 . Overload Shots . | . . . . . . . Overflow Damage 982 | . 4 45 . . 933 . Projectiles 945 | . 4 22 . . 919 . Explosions 37 | . . 23 . . 14 . Melee . | . . . . . . . Knockbacks 48 | . 5 5 . . 38 . Impact 14 | . . . . . 14 . Kinetic 32 | . 5 5 . . 22 . Secondary 2 | . . . . . 2 . Self-Inflicted Damage 44 | . 40 . . . 4 . Shots 1 | . 1 . . . . . Rammed 2 | . . . . . 2 . Targets Rammed 2 | . . . . . 2 . Kicked . | . . . . . . . Crushed . | . . . . . . . Highest Temperature 559 | . 117 56 120 . 559 . Average Temperature 84 | . 22 24 56 . 158 . Received Heat Transfer 1525 | . 63 132 . . 1330 . Effects 7 | . . . . . 7 . Shutdowns 4 | . . . . . 4 . Damage (minor) 1 | . . . . . 1 . Damage (major) 1 | . . . . . 1 . Damage (core) 1 | . . . . . 1 . Siege Activations . | . . . . . . . Robots Corrupted 11 | . . . . . 11 . Combat Hostiles 11 | . . . . . 11 . Parts Fried 17 | . 1 . . . 16 . Impact Corruptions 28 | . . . . . 28 . Robots Melted . | . . . . . . . Combat Hostiles . | . . . . . . . Parts Melted . | . . . . . . . Heat Transferred 716 | . 50 592 74 . . . Parts Sabotaged . | . . . . . . . Parts Stolen . | . . . . . . . Parts Stripped . | . . . . . . . Power Chain Reactions 1 | . 1 . . . . . Alert | -11 -10 -10 -9 -9 -6 -6 ------- Run | Yrd Mat Sub Rec Scr Fac Low Peak Influence 629 | . 289 . 46 . 629 . Initial 26 | . . . 26 . . . Average 205 | . 78 . 40 . 289 . Maximum Alert Level 2 | . 1 . . . 2 . Low Security (%) 58 | 100 88 . 100 . 37 . Level 1 14 | . 11 . . . 18 . Level 2 27 | . . . . . 44 . Level 3 . | . . . . . . . Level 4 . | . . . . . . . Level 5 . | . . . . . . . High Security . | . . . . . . . Max Security . | . . . . . . . Squads Dispatched 19 | . 5 . . . 14 . Investigation 9 | . 3 . . . 6 . Extermination 3 | . . . . . 3 . Reinforcement 6 | . 2 . . . 4 . Assault 1 | . . . . . 1 . Garrison . | . . . . . . . Intercept . | . . . . . . . Searches Triggered . | . . . . . . . Construction Impeded 2 | . . . . . 2 . Haulers Reinforced . | . . . . . . . Active Scanning Responses . | . . . . . . . Cargo Convoy Interrupts . | . . . . . . . Stealth | -11 -10 -10 -9 -9 -6 -6 --------- Run | Yrd Mat Sub Rec Scr Fac Low Distress Signals 3 | . 2 . . . 1 . Communications Jammed . | . . . . . . . Distress Signals . | . . . . . . . Times Spotted 104 | . 22 22 . . 58 2 Peak Tracking Total 12 | . 4 4 . . 12 2 Tactical Retreats 13 | . 2 2 . . 9 . Traps | -11 -10 -10 -9 -9 -6 -6 ------- Run | Yrd Mat Sub Rec Scr Fac Low Traps Triggered 5 | . 3 . . . 2 . Indirectly . | . . . . . . . Trap Hack Attempts . | . . . . . . . Triggered . | . . . . . . . Disarmed . | . . . . . . . Reprogrammed . | . . . . . . . Reused . | . . . . . . . Traps Extracted . | . . . . . . . Installed . | . . . . . . . Triggered 2 | . 1 . . . 1 . Machines | -11 -10 -10 -9 -9 -6 -6 ---------- Run | Yrd Mat Sub Rec Scr Fac Low Machines Disabled 6 | . . 4 . . 2 . Max in Single Turn 3 | . . 3 . . 1 . Garrison Access 1 | . . . . . 1 . Machines Repaired . | . . . . . . . Machines Dismantled . | . . . . . . . Machines Sabotaged . | . . . . . . . Overloaded Fab Kills . | . . . . . . . Hacking | -11 -10 -10 -9 -9 -6 -6 --------- Run | Yrd Mat Sub Rec Scr Fac Low Machines Accessed 26 | . 9 2 3 1 11 . Terminals 13 | . 7 . 2 . 4 . Fabricators 1 | . . . . . 1 . Repair Stations 3 | . 1 . . . 2 . Recycling Units 5 | . 1 . 1 . 3 . Scanalyzers . | . . . . . . . Garrison Access 1 | . . . . . 1 . Total Hacks 72 | . 26 5 8 4 29 . Successful 36 | . 12 5 3 4 12 . Failed 36 | . 14 . 5 . 17 . Catastrophic 5 | . 2 . . . 3 . Database Lockouts . | . . . . . . . Manual 36 | . 14 . 7 . 15 . Terminals 40 | . 21 . 6 . 13 . Fabricators 4 | . . . . . 4 . Repair Stations 6 | . 2 . . . 4 . Recycling Units 11 | . 3 . 2 . 6 . Scanalyzers . | . . . . . . . Garrison Access 2 | . . . . . 2 . Terminal Hacks 23 | . 9 5 2 4 3 . Record 8 | . . 4 . 4 . . Robot Analysis 5 | . 5 . . . . . Prototype ID Bank 2 | . . . 1 . 1 . Recycling Unit Index 1 | . . . . . 1 . Unreport Threat 1 | . 1 . . . . . Locate Traps 3 | . 2 . . . 1 . Zone Layout 2 | . 1 . 1 . . . Derelict Proto ID Bank 1 | . . 1 . . . . Fabricator Hacks . | . . . . . . . Repair Station Hacks 5 | . 2 . . . 3 . Scan Component 2 | . 1 . . . 1 . Repair 2 | . 1 . . . 1 . Refit 1 | . . . . . 1 . Recycling Unit Hacks 1 | . 1 . . . . . Retrieve Components 1 | . 1 . . . . . Scanalyzer . | . . . . . . . Garrison Access Hacks 1 | . . . . . 1 . Seal Access 1 | . . . . . 1 . Unauthorized Hacks 6 | . . . 1 . 5 . Terminals 2 | . . . . . 2 . Botnet 1 | . . . . . 1 . Operators 1 | . . . . . 1 . Fabricators 1 | . . . . . 1 . Liberate 1 | . . . . . 1 . Repair Stations 2 | . . . . . 2 . Recycling Units 1 | . . . 1 . . . Recyclers 1 | . . . 1 . . . Fedlink 2 | . . . . . 2 . Scanalyzers . | . . . . . . . Garrison Access . | . . . . . . . Data Cores Recovered . | . . . . . . . Used . | . . . . . . . Hacking Detections 18 | . 9 . 2 . 7 . Full Trace Events 7 | . 3 . 1 . 3 . Feedback Events . | . . . . . . . Feedback Blocked . | . . . . . . . Robot Schematics Acquired . | . . . . . . . Robots Built . | . . . . . . . Authchips . | . . . . . . . Time . | . . . . . . . Total Robot Build Rating . | . . . . . . . Part Schematics Acquired . | . . . . . . . Parts Built . | . . . . . . . Authchips . | . . . . . . . Time . | . . . . . . . Total Part Build Rating . | . . . . . . . Parts Repaired 2 | . 1 . . . 1 . Time 76 | . 26 . . . 50 . Parts Recycled . | . . . . . . . Recycled Matter . | . . . . . . . Retrieved Matter . | . . . . . . . Retrieved Components 10 | . 10 . . . . . Parts Scanalyzed . | . . . . . . . Part Schematics Acquired . | . . . . . . . Parts Damaged . | . . . . . . . Bothacking | -11 -10 -10 -9 -9 -6 -6 ------------ Run | Yrd Mat Sub Rec Scr Fac Low Used RIF Installer . | . . . . . . . Robots Hacked . | . . . . . . . Non-combat . | . . . . . . . Combat . | . . . . . . . Robot Hacks Applied . | . . . . . . . Relay Couplers Released . | . . . . . . . Fabnet Peak Effective % . | . . . . . . . Robots Rewired . | . . . . . . . Allies Hacked . | . . . . . . . Hacks Repelled . | . . . . . . . Allies | -11 -10 -10 -9 -9 -6 -6 -------- Run | Yrd Mat Sub Rec Scr Fac Low Total Allies 8 | . . . . . 8 . Largest Group 3 | . . . . . 3 . Highest-Rated Group 87 | . . . . . 87 . Highest-Rated Ally 32 | . . . . . 32 . Total Orders . | . . . . . . . Ally Attacks 46 | . . . . . 46 . Total Damage 482 | . . . . . 482 . Kills 3 | . . . . . 3 . Allies Corrupted . | . . . . . . . Allies Melted . | . . . . . . . Intel | -11 -10 -10 -9 -9 -6 -6 ------- Run | Yrd Mat Sub Rec Scr Fac Low Robot Analysis Total 5 | . 5 . . . . . Derelict Logs Recovered 6 | . . 2 . 4 . . Drone Launches . | . . . . . . . Drone Recoveries . | . . . . . . . Decoded 0b10 Intel 28 | . . . . . 28 . Traps 26 | . . . . . 26 . Garrisons 1 | . . . . . 1 . Exits 1 | . . . . . 1 . Exploration | -11 -10 -10 -9 -9 -6 -6 ------------- Run | Yrd Mat Sub Rec Scr Fac Low Turns Passed 10985 | 64 1533 3053 214 3231 2889 1 Spaces Moved 4778 | 38 656 1579 126 1331 1048 . Core 173 | 9 . . . . 164 . Treads 4389 | 29 656 1579 126 1331 668 . Legs 112 | . . . . . 112 . Wheels 104 | . . . . . 104 . Hover . | . . . . . . . Flight . | . . . . . . . Fastest Speed 50 | 50 160 160 160 160 50 . Average Speed 198 | 143 160 160 160 240 234 . Slowest Speed 540 | 160 160 240 160 340 540 . Overloaded Moves . | . . . . . . . Propulsion Burnouts . | . . . . . . . Robots Hopped . | . . . . . . . Cave-ins Triggered . | . . . . . . . Exploration Rate (%) 47 | 5 97 63 38 88 35 3 Regions Visited 6 Branch Regions 4 Pre-discovered Areas 3 | . . 2 . 1 . . Known Exits Taken 1 | . . . . . 1 . Unknown Exits Taken 5 | 1 1 1 1 1 . . Scrap Searched 19 | . . 9 . 10 . . Spaces Dug 3 | . . . 3 . . . Terrain Destroyed 138 | . 2 55 5 . 76 . Melee . | . . . . . . . Projectile 28 | . . 3 5 . 20 . AOE 109 | . 2 52 . . 55 . Terrain Rammed . | . . . . . . . Walls Destroyed . | . . . . . . . Machines Disabled . | . . . . . . . Actions | -11 -10 -10 -9 -9 -6 -6 --------- Run | Yrd Mat Sub Rec Scr Fac Low Total 5869 | 45 1049 1978 132 1373 1291 1 Wait 611 | . 317 264 . . 30 . Move 4772 | 37 655 1578 125 1330 1047 . Hop . | . . . . . . . Pick Up 60 | 2 16 15 . 18 9 . Fast Attach 36 | 6 3 5 . 6 16 . Attach 29 | . 1 6 . . 22 . Detach 9 | . . 1 . . 8 . Swap 13 | . 3 8 . 1 1 . Drop 48 | . 8 14 . 18 8 . Fire 280 | . 46 78 7 . 148 1 Melee . | . . . . . . . Ram 2 | . . . . . 2 . Kick . | . . . . . . . Crush . | . . . . . . . Escape Stasis . | . . . . . . . Rewire . | . . . . . . . Trap . | . . . . . . . Miscellaneous 9 | . . 9 . . . . Route ------- -11/Scrapyard -10/Materials (discovered 6 exits: [*Mat x3] / [*Min x2] / *Sub) -10/Subcaves (discovered 3 exits: [*Mat x2] / *Rec) -9/Recycling -9/Scraptown (discovered 2 exits: *Fac x2) -6/Factory -6/Lower Caves (discovered 1 exit: Low) History --------- Turn | Location | Event 12 | -11/Scrapyard | Discovered new exit (range 16) 65 | -11/Scrapyard | Entered Materials 302 | -10/Materials | Build established: Mutant 328 | -10/Materials | Discovered new exit (range 5) 433 | -10/Materials | Repaired Lgt. Treads 603 | -10/Materials | Discovered new exit (range 6) 727 | -10/Materials | Discovered new exit (range 3) 939 | -10/Materials | Discovered new exit (range 8) 1100 | -10/Materials | Discovered new exit (range 14) 1582 | -10/Materials | Discovered new exit (range 4) 1598 | -10/Materials | Entered Subcaves 1598 | -10/Subcaves | Learned location of 1 exit from Materials 1598 | -10/Subcaves | Discovered new exit (range 6) 1723 | -10/Subcaves | Learned location of Zion (-7) 1762 | -10/Subcaves | Disturbed a concealed Subdweller 1808 | -10/Subcaves | Core integrity fell below 50% 1917 | -10/Subcaves | Lost 3 parts (1n1u1w) 2209 | -10/Subcaves | Discovered new exit (range 14) 2419 | -10/Subcaves | Ambushed by Subdwellers from Twisted Machinery 2895 | -10/Subcaves | Shifting Twisted Machinery released Sub. Monowheel 2917 | -10/Subcaves | Shifting Twisted Machinery released Mak. Spear 2948 | -10/Subcaves | Met a Zionite searching for "candidates" 3258 | -10/Subcaves | Ambushed by Subdweller buried in earth 3258 | -10/Subcaves | Ambushed by Subdweller buried in earth 3291 | -10/Subcaves | Discovered new exit (range 10) 3347 | -10/Subcaves | A swath of the cavern ceiling suddenly collapsed 3382 | -10/Subcaves | Shifting Twisted Machinery released Sub. Power Source 3398 | -10/Subcaves | Shifting Twisted Machinery released Sub. Monowheel 3690 | -10/Subcaves | Shifting Twisted Machinery released Spk. Treads 3970 | -10/Subcaves | Visited Clippyterm 3975 | -10/Subcaves | Learned Factory fabricator intel 3975 | -10/Subcaves | Learned Factory emergency access door positions 4222 | -10/Subcaves | Visited 4L-MR0's lab 4245 | -10/Subcaves | Found Flightbrick 4651 | -10/Subcaves | Entered Recycling 4816 | -9/Recycling | Scanned before Scraplab entrance 4838 | -9/Recycling | Entered Scraplab 4861 | -9/Recycling | Discovered new exit (range 3) 4865 | -9/Recycling | Entered Scraptown 5337 | -9/Scraptown | Scanned Subdweller tech in exchange for log data 5346 | -9/Scraptown | Learned location of 2 exits from Lower Caves 5348 | -9/Scraptown | Learned Research garrison access intel 5351 | -9/Scraptown | Learned location of Extension (-4) 5356 | -9/Scraptown | Learned Factory terminal intel 5391 | -9/Scraptown | Discovered new exit (range 13) 5597 | -9/Scraptown | Visited Spacefarers 5712 | -9/Scraptown | Visited Symbiants 5800 | -9/Scraptown | Visited Fellowship of the Rings 5950 | -9/Scraptown | Visited Awakened 6276 | -9/Scraptown | Visited UFD Registry 6276 | -9/Scraptown | Registered with UFD as "Hammerhacker" 6331 | -9/Scraptown | Visited Bundlers 6555 | -9/Scraptown | Visited Science Testing Area 6575 | -9/Scraptown | Visited Shadow of the Wyrm 6678 | -9/Scraptown | Visited Curators Association 6735 | -9/Scraptown | Visited Scrap Suit Storage 6815 | -9/Scraptown | Visited Infowarlord's Domain 6909 | -9/Scraptown | Delivered Scrap Shield to a Scientist 7167 | -9/Scraptown | Found Scrap Suit 7233 | -9/Scraptown | Visited Scrapoid Pod Storage 7298 | -9/Scraptown | Visited DA-N13 Charitable Foundation 7308 | -9/Scraptown | Found DCF Scrap (30 items) 7395 | -9/Scraptown | Visited Research Penetration Think Tank 7460 | -9/Scraptown | Visited Modified Component R&D 7554 | -9/Scraptown | Visited Abandonware Association 7580 | -9/Scraptown | Learned abandonware demo "KABOOM.EXE" 7580 | -9/Scraptown | Learned abandonware demo "POISON.EXE" 7647 | -9/Scraptown | Visited Junk Cannon Lab 7689 | -9/Scraptown | Found Prototype Special Weapon 7689 | -9/Scraptown | Identified Junk Cannon 8082 | -9/Scraptown | Discovered new exit (range 5) 8096 | -9/Scraptown | Entered Factory 8096 | -6/Factory | Evolved 8 slots: Power x2, Propulsion x1, Utility x4, Weapon x1 8098 | -6/Factory | Loaded intel: 26 terminal locations 8099 | -6/Factory | Loaded intel: 6 fabricator locations 8394 | -6/Factory | Build established: Derelict-Mutant 8751 | -6/Factory | Identified exit to Lower Caves 9461 | -6/Factory | Build established: Tank 9628 | -6/Factory | Repaired Lgt. Angular Momentum Engine 9963 | -6/Factory | Build established: Mutant 10645 | -6/Factory | Spotted B-75 Beast 10685 | -6/Factory | Released all parts (6) 10687 | -6/Factory | Core integrity fell below 50% 10711 | -6/Factory | Lost 8 parts (2p3n3w) 10860 | -6/Factory | Core integrity fell below 20% 10896 | -6/Factory | First assault squad dispatched 10985 | -6/Factory | Entered Lower Caves 10986 | -6/Lower Caves | Identified exit to Lower Caves 10986 | -6/Lower Caves | Destroyed by S-27 Virus with Autogun Last Messages --------------- 10875_ Acquired Imp. Heat Sink. 10876_ Slug penetrates Wall. 10877_ K-01 Serf collects debris. 10879_ Slug penetrates Wall. 10896_ ALERT: Significant disruption in Zone 3P, assault force dispatched. 10900_ System corrupted: Component data lost. 10908_ Critical hit (Burn: +50). 10919_ System corrupted: Energy discharge (-28). 10931_ Slug penetrates Wall. 10932_ C-30 ARC bursts open, deploying its payload. 10932_ G-67 Veteran unfolds itself. 10932_ G-50 Soldier unfolds itself. 10932_ I-36 Angel unfolds itself. 10934_ Penetrated by Slug. 10934_ Slug penetrates Wall. 10957_ Arm. Huge Wheel destroyed. LOCATION=LOWER CAVES GOAL=ESCAPE 10985_ S-27 Virus destroyed. Loading 1 Lower Caves exit... Map ----- +----------------------------------------------------+ | | | | | | | ?????????????????????????????????????????????????? | | ?????????????????????????????????????????????????? | | ?????????????????????????????????????????????????? | | ?????????????????????????????????????????????????? | | ?????????????????????????????????????????????????? | | ?????????????????????????????????????????????????? | | ?????????????????????????????????????????????????? | | ?????????????????????????????????????????????????? | | ?????????????????????????????????????????????????? | | ?????????????????????????????????????????????????? | | ?????????????????????????????????????????????????? | | ?????????????????????????????????????????????????? | | ?????????????????????????????????????????????????? | | ?????????????????????????????????????????????????? | | ?????????????????####????????????????????????????? | | ?????????????##### ####????????????????????????? | | ?????????????# ###?????????????????????? | | ??????????????# ##????????????????????? | | ???????????????# ##???????????????????? | | ????????????????# #???????????????????? | | ?????????????????# #???????????????????? | | ??????????????????# #????????????????????? | | ????????????????????# @ #?????????????????????? | | ????????????????????## = #?????????????????????? | | ?????????????????????## *% #?????????????????????? | | ??????????????????????# ?????????????????????? | | ??????????????????????# ????????????????????? | | ??????????????????????#s ???????????????????? | | ?????????????????????? ???????????????????? | | ?????????????????????? ??????????????????? | | ?????????????????????s ## ?????????????????? | | ????????????????????? ##? ????????????????? | | ????????????????????# ###??? ????????????????? | | ????????????????????###??????? ???????????????? | | ?????????????????????????????? ??????????????? | | ??????????????????????????????? ????????????????? | | ?????????????????????????????????????????????????? | | ?????????????????????????????????????????????????? | | ?????????????????????????????????????????????????? | | ?????????????????????????????????????????????????? | | ?????????????????????????????????????????????????? | | ?????????????????????????????????????????????????? | | ?????????????????????????????????????????????????? | | ?????????????????????????????????????????????????? | | ?????????????????????????????????????????????????? | | ?????????????????????????????????????????????????? | | ?????????????????????????????????????????????????? | +----------------------------------------------------+ Best States ------------- Heat Dissipation 65 Energy Generation 31 Energy Capacity 250 Matter Stores 300 Matter Capacity 300 Sight Range 16 Terrain Scan Density 10 Base Temperature (-) 150 Armor Coverage 800 Resistance: KI 30 Weapon Shielding 66 Evasion (%) 40 Targeting Accuracy 5 Recoil Reduction 2 Offensive Hacking 10 Item Schematics ----------------- None Robot Schematics ------------------ None Fabricated ------------ Nothing Alien Tech Used ----------------- None Achievements -------------- None Challenges ------------ None Game ------ Seed SchematicThrusterDetonator Manual? 0 Play Time 00:51:39 Cumulative 201.1 hours Start 2024.09.18 @ 21:15:28 End 2024.09.18 @ 22:07:45 Sessions 1 Manual Loads 0 Difficulty Rogue Special Mode None Game No. 183 Rogue 183 Adventurer 0 Explorer 0 Win Type - Total 3 Types 3/0/0/0/0/0/0/0/0 Lore% 50 Gallery% 67 Achievement% 56 Wizard Run 0 Options --------- Layout 0 ASCII 0 Keyboard 0 Movement Numpad Keybinds 0 Fullscreen 2 Font 18/SmallcapsGlow Map View 76x50 Zoom Use 0% Tactical HUD 1 Map Filters NONE Filters NONE Steam 1 RUN: 1568c1bd-f664-4cab-87bf-e756d131573a